bitfinex/quotes_BTCUSD_20230111
["timestamp","ask_amount","ask_price","bid_price","bid_amount"]
[1673461768737,0.109,17495.0,17493.0,1.17402856]
[1673461768738,0.11,17495.0,17493.0,1.17402856]
[1673461768979,0.20045,17494.0,17493.0,1.17402856]
[1673461769203,0.20045,17494.0,17493.0,1.47402856]
[1673461769486,0.66876571,17495.0,17493.0,1.47402856]
[1673461769736,0.66876571,17495.0,17493.0,2.04568556]
[1673461769984,0.20045,17494.0,17493.0,2.04568556]
[1673461770489,0.66876571,17495.0,17493.0,2.04568556]
[1673461770744,0.20045,17494.0,17493.0,1.44331]
[1673461770986,0.109,17495.0,17494.0,1.15778997]
[1673461771193,0.30945,17495.0,17494.0,1.45778997]
[1673461771763,0.31045,17495.0,17494.0,1.45778997]
[1673461772012,0.30945,17495.0,17494.0,1.45778997]
[1673461772270,0.31045,17495.0,17494.0,1.46278997]
[1673461773323,0.11,17495.0,17494.0,1.46278997]
[1673461773589,0.31045,17495.0,17494.0,2.03441397]
[1673461773827,0.20145,17495.0,17494.0,2.03441397]
[1673461774082,0.001,17495.0,17494.0,2.03441397]
[1673461774328,0.001,17495.0,17494.0,2.33441397]
[1673461774585,0.001,17495.0,17494.0,1.748248]
[1673461774830,0.001,17495.0,17494.0,2.94386241]
[1673461775834,0.0148964,17496.0,17494.0,2.93886241]
[1673461776096,0.0148964,17496.0,17495.0,1.443182]
[1673461776334,0.0148964,17496.0,17495.0,1.743182]
[1673461777078,0.0148964,17496.0,17495.0,1.751682]
[1673461777332,0.0148964,17496.0,17495.0,2.681441]
[1673461777575,0.0148964,17496.0,17495.0,1.151682]
[1673461777576,0.23391743,17496.0,17495.0,1.151682]
[1673461777826,0.23391743,17496.0,17494.0,1.25955712]
[1673461777827,0.7244519,17496.0,17494.0,1.25955712]
[1673461778080,0.7244519,17496.0,17495.0,0.141]
[1673461778081,0.94347293,17496.0,17495.0,0.141]
[1673461778326,0.7244519,17496.0,17495.0,0.141]
[1673461779858,0.2153464,17496.0,17495.0,0.141]
[1673461780367,0.94717678,17496.0,17495.0,0.141]
[1673461784976,1.51873578,17496.0,17495.0,0.141]
[1673461785173,2.09029478,17496.0,17495.0,0.141]
[1673461785420,2.96185378,17496.0,17495.0,0.141]
[1673461786899,2.96185378,17496.0,17492.0,0.52644754]
[1673461787150,0.109,17495.0,17492.0,0.52644754]
[1673461787408,0.20045,17494.0,17492.0,0.52644754]
[1673461787658,1.19962603,17495.0,17492.0,0.52644754]
[1673461787905,0.3,17494.0,17492.0,0.52644754]
[1673461788154,0.20045,17493.0,17492.0,0.52644754]
[1673461788444,0.89868893,17493.0,17491.0,0.04806092]
[1673461788691,2.13345693,17493.0,17492.0,0.14]
[1673461788944,2.1318359,17493.0,17492.0,0.14]
[1673461789195,2.4318359,17493.0,17492.0,0.14]
[1673461789700,3.0034929,17493.0,17491.0,0.04806092]
[1673461789954,0.5171,17492.0,17491.0,0.16006092]
[1673461790203,1.860928,17492.0,17490.0,3.399e-05]
[1673461790452,0.1087,17491.0,17490.0,3.399e-05]
[1673461790702,0.60907842,17491.0,17490.0,3.399e-05]
[1673461790948,0.40862842,17491.0,17490.0,3.399e-05]
[1673461791451,0.40862842,17491.0,17490.0,0.03903399]
[1673461791706,0.40862842,17491.0,17490.0,3.399e-05]
[1673461791955,0.60907842,17491.0,17490.0,3.399e-05]
[1673461792202,0.40862842,17491.0,17490.0,3.399e-05]
[1673461792487,0.60907842,17491.0,17490.0,3.399e-05]
[1673461792765,0.60907842,17491.0,17490.0,0.03903399]
[1673461793014,0.60907842,17491.0,17490.0,3.399e-05]
[1673461793263,0.60907842,17491.0,17490.0,0.03903399]
[1673461794305,0.30907842,17491.0,17490.0,0.03903399]
[1673461795011,0.10862842,17491.0,17490.0,0.03903399]
[1673461795264,0.10862842,17491.0,17490.0,0.76820279]
[1673461796029,0.10862842,17491.0,17490.0,0.72920279]
[1673461796269,0.10862842,17491.0,17490.0,0.76820279]
[1673461797025,1.09982145,17491.0,17490.0,0.03903399]
[1673461797278,1.40846468,17491.0,17490.0,0.03903399]
[1673461797789,2.28018668,17491.0,17490.0,0.03903399]
[1673461798094,2.49920771,17491.0,17490.0,0.03903399]
[1673461798304,2.96010868,17491.0,17490.0,0.03903399]
[1673461798557,3.11007508,17491.0,17490.0,0.03903399]
[1673461799330,3.21867508,17491.0,17490.0,0.03903399]
[1673461799802,3.21867508,17491.0,17490.0,3.399e-05]
[1673461800047,2.54104442,17491.0,17490.0,0.03903399]
[1673461800307,2.97039658,17491.0,17490.0,3.399e-05]
[1673461800567,2.14184442,17491.0,17490.0,0.01003399]
[1673461800825,0.009,17491.0,17490.0,0.77080474]
[1673461801082,0.009,17491.0,17490.0,0.53312685]
[1673461801330,0.009,17491.0,17490.0,3.399e-05]
[1673461801331,0.5699144,17491.0,17490.0,3.399e-05]
[1673461801578,0.7783644,17491.0,17490.0,0.01003399]
[1673461801828,0.8849404,17491.0,17490.0,0.01003399]
[1673461802329,2.1373844,17491.0,17490.0,0.01003399]
[1673461802649,1.2939404,17491.0,17490.0,0.01003399]
[1673461802869,0.72585,17491.0,17490.0,0.35299788]
[1673461803116,0.72585,17491.0,17489.0,0.69640927]
[1673461803117,0.409,17491.0,17489.0,0.69640927]
[1673461803363,0.409,17491.0,17490.0,0.006]
[1673461803364,0.423,17491.0,17490.0,0.006]
[1673461803622,0.423,17491.0,17489.0,0.69640927]
[1673461803623,0.409,17491.0,17489.0,0.69640927]
[1673461803918,0.20045,17490.0,17489.0,0.69640927]
[1673461804653,0.423,17491.0,17489.0,0.69640927]
[1673461804654,0.409,17491.0,17489.0,0.69640927]
[1673461804912,0.109,17491.0,17490.0,0.51315069]
[1673461805427,0.30945,17491.0,17490.0,0.51315069]
[1673461805703,2.024616,17491.0,17489.0,0.03605127]
[1673461805937,0.53419246,17490.0,17489.0,5.127e-05]
[1673461806185,0.73464246,17490.0,17489.0,5.127e-05]
[1673461806512,1.03464246,17490.0,17489.0,5.127e-05]
[1673461807195,1.04864246,17490.0,17489.0,5.127e-05]
[1673461808963,2.19215246,17490.0,17489.0,5.127e-05]
[1673461809729,2.40875246,17490.0,17489.0,5.127e-05]
[1673461813438,2.40875246,17490.0,17489.0,0.02750241]
[1673461815931,1.89215246,17490.0,17489.0,0.02750241]
[1673461816175,1.32039746,17490.0,17489.0,0.02750241]
[1673461816423,0.014,17490.0,17489.0,0.70287102]
[1673461817926,0.67507618,17491.0,17489.0,1.27465802]
[1673461818415,0.67507618,17491.0,17489.0,1.31065802]
[1673461818921,0.67507618,17491.0,17489.0,1.27465802]
[1673461819437,0.67507618,17491.0,17489.0,1.31065802]
[1673461820418,0.67507618,17491.0,17489.0,1.31060675]
[1673461820656,0.20045,17490.0,17489.0,0.73881975]
[1673461820903,0.67507618,17491.0,17489.0,0.73881975]
[1673461821401,0.20045,17490.0,17489.0,0.73881975]
[1673461821661,0.67507618,17491.0,17489.0,0.73881975]
[1673461821926,0.67507618,17491.0,17489.0,0.70281975]
[1673461822151,0.20045,17490.0,17489.0,0.73881975]
[1673461822389,0.67507618,17491.0,17489.0,0.73881975]
[1673461822958,0.20045,17490.0,17489.0,0.70281975]
[1673461823201,0.20045,17490.0,17489.0,0.73881975]
[1673461823439,0.67507618,17491.0,17489.0,0.73881975]
[1673461823695,2.54336325,17493.0,17489.0,2.45415875]
[1673461823696,1.54315,17493.0,17489.0,2.45415875]
[1673461823943,0.58863177,17492.0,17490.0,0.23767789]
[1673461824185,0.58863177,17492.0,17490.0,0.67585502]
[1673461824444,0.58863177,17492.0,17490.0,1.24760902]
[1673461825189,0.58863177,17492.0,17490.0,1.81936402]
[1673461825433,0.60263177,17492.0,17490.0,1.81936402]
[1673461825679,0.014,17492.0,17490.0,1.81936402]
[1673461826669,0.61060685,17493.0,17490.0,1.81936402]
[1673461826918,0.001,17492.0,17491.0,0.56559929]
[1673461827180,0.61060685,17493.0,17491.0,1.13732129]
[1673461827407,0.001,17492.0,17491.0,1.13732129]
[1673461827662,0.61060685,17493.0,17491.0,1.13732129]
[1673461827912,0.61060685,17493.0,17491.0,1.17332129]
[1673461828142,0.20045,17492.0,17491.0,1.47332129]
[1673461828391,1.76995,17494.0,17491.0,2.04504329]
[1673461828648,2.32180891,17494.0,17491.0,1.94672118]
[1673461828895,0.85185891,17494.0,17491.0,1.94672118]
[1673461829160,0.55185891,17494.0,17491.0,1.94672118]
[1673461829421,0.55185891,17494.0,17491.0,1.52014329]
[1673461829666,0.55185891,17494.0,17492.0,0.57715789]
[1673461830155,1.12348291,17494.0,17492.0,0.57715789]
[1673461830447,0.55185891,17494.0,17492.0,0.57715789]
[1673461830695,0.56585891,17494.0,17492.0,0.57715789]
[1673461831435,0.55185891,17494.0,17492.0,0.57715789]
[1673461832186,0.20045,17493.0,17492.0,0.61315789]
[1673461832434,0.55185891,17494.0,17492.0,0.61315789]
[1673461832682,0.55185891,17494.0,17492.0,0.036]
[1673461832683,1.12349191,17494.0,17492.0,0.036]
[1673461833016,0.20045,17493.0,17492.0,0.036]
[1673461833206,0.50045,17493.0,17492.0,0.036]
[1673461833698,0.50045,17493.0,17491.0,0.61294823]
[1673461833953,0.3,17493.0,17491.0,0.61294823]
[1673461834455,0.50045,17493.0,17491.0,0.61294823]
[1673461834701,0.85185891,17494.0,17491.0,1.18467023]
[1673461834946,0.001,17493.0,17491.0,1.53034812]
[1673461835187,0.001,17493.0,17491.0,1.29267023]
[1673461835431,0.001,17493.0,17491.0,1.86439223]
[1673461835672,0.001,17493.0,17492.0,0.3]
[1673461835923,0.001,17493.0,17491.0,2.16433723]
[1673461836183,0.55185891,17494.0,17491.0,2.05634223]
[1673461836426,0.55285891,17494.0,17491.0,2.16434223]
[1673461836673,0.55185891,17494.0,17491.0,1.75634223]
[1673461836918,0.20045,17493.0,17491.0,1.75634223]
[1673461837160,0.55185891,17494.0,17492.0,0.036]
[1673461837161,0.85185891,17494.0,17492.0,0.036]
[1673461837400,0.20045,17493.0,17491.0,1.75634223]
[1673461837644,0.85185891,17494.0,17491.0,1.86434223]
[1673461837645,0.85285891,17494.0,17491.0,1.86434223]
[1673461837894,0.52155701,17493.0,17491.0,1.86434223]
[1673461838468,0.52155701,17493.0,17489.0,1.20856222]
[1673461838469,0.20045,17492.0,17489.0,1.70372876]
[1673461838710,0.21902103,17491.0,17489.0,1.23487122]
[1673461838970,0.21902103,17491.0,17489.0,0.66310122]
[1673461839230,0.51902103,17491.0,17489.0,0.66310122]
[1673461839474,0.20045,17490.0,17489.0,0.66310122]
[1673461839732,1.443466,17491.0,17489.0,0.07743014]
[1673461839987,0.20045,17490.0,17489.0,0.02745114]
[1673461840233,0.772205,17490.0,17489.0,0.02745114]
[1673461840475,0.772205,17490.0,17489.0,0.06645114]
[1673461840476,1.4731547,17490.0,17489.0,0.06645114]
[1673461840725,0.9013997,17490.0,17489.0,0.06645114]
[1673461840971,0.9013997,17490.0,17489.0,0.02745114]
[1673461841211,0.7009497,17490.0,17489.0,0.02745114]
[1673461841475,1.552217,17492.0,17489.0,0.06645114]
[1673461841715,0.70608747,17491.0,17489.0,0.30412903]
[1673461841976,0.20045,17490.0,17489.0,0.06645114]
[1673461842232,0.70608747,17491.0,17489.0,0.02745114]
[1673461842475,0.70608747,17491.0,17489.0,0.06645114]
[1673461842742,0.70608747,17491.0,17489.0,0.02745114]
[1673461843043,0.70608747,17491.0,17489.0,0.58361589]
[1673461843296,0.70608747,17491.0,17489.0,0.54461589]
[1673461843525,1.27781447,17491.0,17489.0,0.58361589]
[1673461844798,1.55554813,17493.0,17490.0,0.66577071]
[1673461845041,1.55554813,17493.0,17490.0,1.4752006]
[1673461845591,0.20045,17492.0,17490.0,1.4752006]
[1673461845800,1.55554813,17493.0,17490.0,1.80927771]
[1673461846041,1.57554813,17493.0,17490.0,2.0469556]
[1673461846282,1.57554813,17493.0,17490.0,1.80927771]
[1673461846521,1.57254813,17493.0,17490.0,1.80927771]
[1673461846761,0.63250622,17492.0,17490.0,1.23752271]
[1673461847248,0.63250622,17492.0,17490.0,1.34952271]
[1673461848486,0.63250622,17492.0,17490.0,1.23752271]
[1673461848729,0.63350622,17492.0,17490.0,1.34952271]
[1673461851461,0.63350622,17492.0,17491.0,0.0273266]
[1673461851949,0.83395622,17492.0,17491.0,0.0273266]
[1673461852448,0.63350622,17492.0,17491.0,0.0273266]
[1673461852692,0.83295622,17492.0,17491.0,0.0273266]
[1673461852934,0.83295622,17492.0,17491.0,0.0663266]
[1673461854706,0.83295622,17492.0,17491.0,0.0273266]
[1673461854937,0.83295622,17492.0,17491.0,0.0663266]
[1673461857391,0.83295622,17492.0,17491.0,0.0661762]
[1673461858652,0.63250622,17492.0,17491.0,0.0661762]
[1673461859138,0.83295622,17492.0,17491.0,0.0661762]
[1673461859387,0.63250622,17492.0,17491.0,0.0661762]
[1673461860647,0.83295622,17492.0,17491.0,0.0661762]
[1673461860905,0.63250622,17492.0,17491.0,0.0661762]
[1673461861165,0.83295622,17492.0,17491.0,0.0661762]
[1673461861441,0.63250622,17492.0,17491.0,0.0661762]
[1673461861711,0.83295622,17492.0,17491.0,0.0661762]
[1673461862786,0.83295622,17492.0,17491.0,0.0271762]
[1673461863031,0.83295622,17492.0,17491.0,0.0661762]
[1673461865354,0.83295622,17492.0,17491.0,0.0271762]
[1673461865596,0.20045,17492.0,17491.0,0.0661762]
[1673461865841,0.571681,17493.0,17491.0,0.0661762]
[1673461866090,1.21983018,17493.0,17491.0,0.0661762]
[1673461866335,0.20045,17492.0,17491.0,0.0661762]
[1673461866577,0.50045,17492.0,17491.0,0.0661762]
[1673461866869,0.3,17492.0,17491.0,0.0661762]
[1673461867136,0.50045,17492.0,17491.0,0.0661762]
[1673461867362,0.20045,17492.0,17491.0,0.0271762]
[1673461867608,0.20045,17492.0,17491.0,0.0661762]
[1673461867856,1.51983018,17493.0,17491.0,0.0271762]
[1673461868111,0.20045,17492.0,17491.0,0.0661762]
[1673461868855,0.3,17492.0,17491.0,0.0661762]
[1673461869107,0.50045,17492.0,17491.0,0.0661762]
[1673461869355,1.51983018,17493.0,17491.0,0.0661762]
[1673461869607,0.20045,17492.0,17491.0,0.0661762]
[1673461870114,1.51983018,17493.0,17491.0,0.0661762]
[1673461870376,0.50045,17492.0,17491.0,0.0661762]
[1673461870894,0.20045,17492.0,17491.0,0.0271762]
[1673461871134,0.20045,17492.0,17491.0,0.0661762]
[1673461871392,1.51983018,17493.0,17491.0,0.0271762]
[1673461871640,0.20045,17492.0,17491.0,0.69173016]
[1673461871908,0.64814918,17493.0,17491.0,1.4323097]
[1673461872678,0.20045,17492.0,17491.0,1.4323097]
[1673461872942,0.64814918,17493.0,17491.0,1.4323097]
[1673461873186,0.64814918,17493.0,17491.0,0.69173016]
[1673461873422,0.20045,17492.0,17491.0,0.0661762]
[1673461873677,0.75810011,17492.0,17491.0,0.0661762]
[1673461873948,0.55765011,17492.0,17491.0,0.0661762]
[1673461874192,0.55765011,17492.0,17491.0,0.0271762]
[1673461874947,0.55765011,17492.0,17491.0,0.0661762]
[1673461875703,0.55765011,17492.0,17491.0,0.75006855]
[1673461875957,2.23588425,17494.0,17491.0,0.91892609]
[1673461876203,0.65267243,17493.0,17491.0,1.15660398]
[1673461876456,0.20045,17492.0,17491.0,1.49064809]
[1673461876698,0.65267243,17493.0,17491.0,1.79064809]
[1673461877186,0.65267243,17493.0,17491.0,1.45164809]
[1673461877481,0.65267243,17493.0,17491.0,1.49064809]
[1673461877705,0.95267243,17493.0,17491.0,1.49064809]
[1673461878197,0.65267243,17493.0,17491.0,1.45164809]
[1673461878438,0.65367243,17493.0,17491.0,1.56364809]
[1673461878684,0.65267243,17493.0,17491.0,1.45164809]
[1673461878932,0.65258848,17493.0,17491.0,1.49064809]
[1673461879425,0.65258848,17493.0,17491.0,0.91892609]
[1673461879689,0.65258848,17493.0,17491.0,1.49064809]
[1673461879935,0.65258848,17493.0,17491.0,1.45164809]
[1673461880181,0.65358848,17493.0,17491.0,1.56364809]
[1673461880418,0.65258848,17493.0,17491.0,1.45164809]
[1673461880671,0.65358848,17493.0,17491.0,1.56364809]
[1673461883202,0.65358848,17493.0,17491.0,1.81692263]
[1673461883447,0.65358848,17493.0,17491.0,1.56364809]
[1673461883697,0.65358848,17493.0,17491.0,2.38864463]
[1673461883941,0.65358848,17493.0,17491.0,2.13537009]
[1673461884465,0.65358848,17493.0,17491.0,2.38864463]
[1673461884958,0.65358848,17493.0,17491.0,2.13537009]
[1673461886464,0.20045,17492.0,17491.0,1.39479055]
[1673461886720,0.95358848,17493.0,17491.0,1.56364809]
[1673461886969,0.65358848,17493.0,17491.0,1.56364809]
[1673461887487,0.65258848,17493.0,17491.0,1.45164809]
[1673461887740,0.001,17492.0,17491.0,1.86364809]
[1673461888004,0.65258848,17493.0,17491.0,1.45164809]
[1673461888572,0.20045,17492.0,17491.0,0.71106855]
[1673461888997,0.95258848,17493.0,17491.0,0.71106855]
[1673461889251,0.95358848,17493.0,17491.0,0.82306855]
[1673461889496,0.20045,17492.0,17491.0,0.71106855]
[1673461889752,0.20145,17492.0,17491.0,0.82306855]
[1673461890000,0.65258848,17493.0,17491.0,0.71106855]
[1673461890246,0.65358848,17493.0,17491.0,0.99192609]
[1673461890484,0.65358848,17493.0,17491.0,0.82306855]
[1673461890699,0.20045,17492.0,17491.0,0.71106855]
[1673461890941,0.001,17492.0,17491.0,0.82306855]
[1673461891459,0.65258848,17493.0,17491.0,0.71106855]
[1673461891989,0.20045,17492.0,17491.0,0.71106855]
[1673461892272,0.95258848,17493.0,17492.0,0.65110192]
[1673461892594,0.65358848,17493.0,17492.0,0.65110192]
[1673461892817,0.65258848,17493.0,17492.0,0.65110192]
[1673461893322,0.001,17492.0,17491.0,1.45145474]
[1673461893862,0.65258848,17493.0,17492.0,0.039]
[1673461894118,0.65258848,17493.0,17491.0,1.85759354]
[1673461894363,0.001,17492.0,17491.0,1.96959354]
[1673461894604,0.001,17492.0,17491.0,2.26959354]
[1673461895448,0.65258848,17493.0,17491.0,2.15759354]
[1673461896191,0.001,17492.0,17491.0,2.26959354]
[1673461896467,0.65258848,17493.0,17491.0,2.45759354]
[1673461896699,0.65358848,17493.0,17491.0,2.26959354]
[1673461897176,0.65358848,17493.0,17491.0,1.96959354]
[1673461897432,0.65358848,17493.0,17491.0,1.39787154]
[1673461897930,0.65358848,17493.0,17491.0,1.65114608]
[1673461898671,0.65358848,17493.0,17491.0,1.39787154]
[1673461899649,0.65358848,17493.0,17491.0,1.96959354]
[1673461899900,0.65358848,17493.0,17492.0,0.71410741]
[1673461900391,0.001,17493.0,17492.0,0.91410741]
[1673461900903,2.07854184,17494.0,17492.0,0.71410741]
[1673461901141,2.07854184,17494.0,17492.0,0.92196495]
[1673461901385,2.07854184,17494.0,17492.0,0.75310741]
[1673461901628,0.20045,17493.0,17492.0,1.32479241]
[1673461901887,2.07854184,17494.0,17492.0,1.49364995]
[1673461902142,0.17093925,17495.0,17492.0,1.54990943]
[1673461902405,0.3,17495.0,17494.0,0.1622902]
[1673461902894,0.99973635,17496.0,17494.0,0.1622902]
[1673461903146,0.69973635,17496.0,17494.0,0.1622902]
[1673461903402,0.21945,17495.0,17494.0,0.1682902]
[1673461903650,0.8287971,17496.0,17494.0,0.1622902]
[1673461903932,0.8287971,17496.0,17494.0,0.1682902]
[1673461903933,0.8477971,17496.0,17494.0,0.1682902]
[1673461904181,0.20045,17495.0,17494.0,0.1622902]
[1673461904442,0.21945,17495.0,17494.0,0.1682902]
[1673461904695,0.21945,17495.0,17494.0,0.70671066]
[1673461904696,0.019,17495.0,17494.0,0.70671066]
[1673461904975,0.019,17495.0,17494.0,1.89667028]
[1673461905225,0.019,17495.0,17494.0,2.55483828]
[1673461905468,0.0148964,17496.0,17495.0,0.65753648]
[1673461905719,0.0328964,17496.0,17495.0,1.11973648]
[1673461905969,0.0328964,17496.0,17495.0,1.69132748]
[1673461906476,0.0148964,17496.0,17495.0,1.69132748]
[1673461906724,0.0158964,17496.0,17495.0,1.80232748]
[1673461906986,0.0158964,17496.0,17495.0,2.37391848]
[1673461907233,0.0158964,17496.0,17495.0,2.67391848]
[1673461907529,0.01583012,17496.0,17495.0,2.37391848]
[1673461907761,0.01583012,17496.0,17495.0,3.93463502]
[1673461908247,0.01583012,17496.0,17495.0,3.53887308]
[1673461908532,2.65318087,17498.0,17496.0,0.00056599]
[1673461908832,0.01478087,17498.0,17497.0,1.66402]
[1673461909031,0.01478087,17498.0,17497.0,2.28198724]
[1673461909282,0.01478087,17498.0,17497.0,1.905852]
[1673461909778,0.01478087,17498.0,17497.0,1.914352]
[1673461910281,0.01478087,17498.0,17497.0,2.076652]
[1673461910535,0.01478087,17498.0,17497.0,2.648178]
[1673461911022,0.01478087,17498.0,17497.0,3.37674264]
[1673461911324,0.01478087,17498.0,17497.0,3.73491064]
[1673461911595,0.01578087,17498.0,17497.0,3.87391064]
[1673461911821,0.01478087,17498.0,17497.0,3.37674264]
[1673461912062,0.01578087,17498.0,17497.0,3.51574264]
[1673461912329,0.01578087,17498.0,17497.0,3.46285202]
[1673461912621,0.01578087,17498.0,17497.0,4.15326991]
[1673461912858,0.01578087,17498.0,17497.0,5.41982814]
[1673461913120,0.01578087,17498.0,17497.0,3.33317342]
[1673461913377,0.01578087,17498.0,17497.0,3.00202353]
[1673461914635,0.01578087,17498.0,17497.0,2.41212]
[1673461915636,0.01578087,17498.0,17497.0,3.13914056]
[1673461916135,0.01578087,17498.0,17497.0,1.39608856]
[1673461916383,0.01578087,17498.0,17497.0,1.23268856]
[1673461916640,0.01578087,17498.0,17497.0,0.87452056]
[1673461916896,0.01578087,17498.0,17497.0,1.43754656]
[1673461917135,0.01578087,17498.0,17497.0,1.79571456]
[1673461917621,0.01578087,17498.0,17497.0,2.66724056]
[1673461918367,0.01578087,17498.0,17497.0,2.520246]
[1673461918614,0.01578087,17498.0,17497.0,3.17812357]
[1673461918858,0.01578087,17498.0,17497.0,2.820246]
[1673461919632,0.01578087,17498.0,17497.0,2.982246]
[1673461920381,0.01578087,17498.0,17497.0,3.145646]
[1673461920891,0.01578087,17498.0,17497.0,3.85809215]
[1673461921458,0.01578087,17498.0,17497.0,3.69609215]
[1673461923667,0.01578087,17498.0,17497.0,2.983646]
[1673461923960,0.01578087,17498.0,17497.0,3.61613384]
[1673461924922,0.01578087,17498.0,17497.0,2.983646]
[1673461926420,0.01572087,17498.0,17497.0,2.983646]
[1673461926666,0.01572087,17498.0,17497.0,3.04115452]
[1673461927912,0.0157701,17499.0,17498.0,3.282e-05]
[1673461928189,0.0157701,17499.0,17498.0,1.6566151]
[1673461928443,0.00080502,17500.0,17499.0,0.3]
[1673461928695,0.00080502,17500.0,17499.0,2.834751]
[1673461929029,0.00080502,17500.0,17499.0,2.843251]
[1673461929226,0.00080502,17500.0,17499.0,4.11161379]
[1673461929498,0.00080502,17500.0,17499.0,4.16912231]
[1673461929767,0.00180502,17500.0,17499.0,4.44552231]
[1673461930013,0.00180502,17500.0,17499.0,4.38801379]
[1673461930818,0.00080502,17500.0,17499.0,4.33252231]
[1673461931076,0.00180502,17500.0,17499.0,4.47152231]
[1673461931329,0.00074502,17500.0,17499.0,4.33252231]
[1673461931608,0.00274502,17500.0,17499.0,4.30832231]
[1673461934282,0.01476433,17501.0,17499.0,5.29527161]
[1673461934558,0.01476433,17501.0,17500.0,2.39278811]
[1673461934800,0.01476433,17501.0,17500.0,3.67011765]
[1673461935043,0.01476433,17501.0,17500.0,3.6015877]
[1673461935563,0.01576433,17501.0,17500.0,3.7405877]
[1673461935795,0.01576433,17501.0,17500.0,3.90850678]
[1673461936043,0.01576433,17501.0,17500.0,4.07190678]
[1673461936307,0.01576433,17501.0,17500.0,4.32518665]
[1673461936559,0.01576433,17501.0,17500.0,4.89647381]
[1673461936803,0.01576433,17501.0,17500.0,4.72655319]
[1673461937065,0.01576433,17501.0,17500.0,4.89647381]
[1673461937306,0.01576433,17501.0,17500.0,5.29799343]
[1673461937555,0.01570433,17501.0,17500.0,5.46790181]
[1673461937822,0.01570433,17501.0,17500.0,5.88984639]
[1673461938068,0.00081681,17502.0,17501.0,0.3]
[1673461938363,0.00081681,17502.0,17501.0,4.52646091]
[1673461938578,0.00081681,17502.0,17501.0,5.74131773]
[1673461938831,0.00081681,17502.0,17501.0,4.59352002]
[1673461939076,0.00081681,17502.0,17501.0,4.73252002]
[1673461939318,0.00081681,17502.0,17501.0,4.33100281]
[1673461939572,0.00081681,17502.0,17501.0,4.89951366]
[1673461939817,0.00081681,17502.0,17501.0,3.61763566]
[1673461940076,0.00081681,17502.0,17501.0,2.95523792]
[1673461940343,0.00075681,17502.0,17501.0,2.92541419]
[1673461940604,0.00075681,17502.0,17501.0,3.17443243]
[1673461940843,0.00075681,17502.0,17501.0,3.20463243]
[1673461941086,0.00075681,17502.0,17501.0,2.59991419]
[1673461941326,0.00075681,17502.0,17501.0,2.46091419]
[1673461941591,0.00075681,17502.0,17501.0,2.59991419]
[1673461941872,0.00075681,17502.0,17501.0,2.76091419]
[1673461942151,0.00075681,17502.0,17501.0,3.50473268]
[1673461942377,0.00075681,17502.0,17501.0,2.89991419]
[1673461943122,0.00075681,17502.0,17501.0,2.76091419]
[1673461943367,0.00175681,17502.0,17501.0,2.89991419]
[1673461943610,0.00175681,17502.0,17501.0,2.76091419]
[1673461943611,0.00069681,17502.0,17501.0,2.76091419]
[1673461943863,0.00169681,17502.0,17501.0,2.89991419]
[1673461944360,0.00169681,17502.0,17501.0,2.84240567]
[1673461944616,0.00169681,17502.0,17501.0,2.95120567]
[1673461945111,0.00169681,17502.0,17501.0,3.00871419]
[1673461945363,0.00169681,17502.0,17501.0,3.41891855]
[1673461945847,0.00169681,17502.0,17501.0,2.81041855]
[1673461946109,0.00169681,17502.0,17501.0,1.80079436]
[1673461946357,0.68918335,17502.0,17501.0,0.139]
[1673461946601,0.68912335,17502.0,17501.0,0.139]
[1673461946852,0.00163681,17502.0,17501.0,0.77520002]
[1673461947112,0.00063681,17502.0,17501.0,0.63620002]
[1673461947349,0.00163681,17502.0,17501.0,0.77620002]
[1673461947860,0.00063681,17502.0,17501.0,0.63620002]
[1673461948120,0.00163681,17502.0,17501.0,0.77620002]
[1673461948370,0.81586438,17502.0,17501.0,0.14]
[1673461948613,1.01631438,17502.0,17501.0,0.13]
[1673461949105,1.01531438,17502.0,17499.0,0.62929848]
[1673461949348,1.14478541,17502.0,17501.0,0.14]
[1673461949604,1.12415438,17502.0,17498.0,0.6201729]
[1673461949857,0.1089,17500.0,17498.0,0.72147454]
[1673461950129,0.1089,17500.0,17498.0,0.0486809]
[1673461950130,0.52837103,17499.0,17498.0,0.0486809]
[1673461950383,0.41745,17499.0,17498.0,0.0486809]
[1673461950662,0.63647103,17499.0,17498.0,3.282e-05]
[1673461950904,0.41745,17499.0,17498.0,3.282e-05]
[1673461951158,0.988911,17499.0,17498.0,0.13903282]
[1673461951422,0.988911,17499.0,17498.0,3.282e-05]
[1673461951671,0.3,17498.0,17496.0,0.70789685]
[1673461952043,0.1081,17497.0,17496.0,0.70789685]
[1673461952471,0.83547096,17497.0,17495.0,0.04973942]
[1673461952741,0.108,17496.0,17495.0,0.04973942]
[1673461953020,0.71725,17496.0,17495.0,0.04973942]
[1673461953269,0.71725,17496.0,17494.0,0.00532822]
[1673461953547,0.1081,17495.0,17494.0,0.00532822]
[1673461954052,0.1081,17495.0,17494.0,0.00517822]
[1673461954335,0.30855,17495.0,17494.0,0.00517822]
[1673461954623,0.41745,17495.0,17494.0,0.00517822]
[1673461954896,0.71745,17495.0,17494.0,0.00517822]
[1673461955145,0.71745,17495.0,17494.0,0.02317822]
[1673461955146,1.31282247,17495.0,17494.0,0.02317822]
[1673461955404,1.31282247,17495.0,17494.0,0.00517822]
[1673461955666,1.41882247,17495.0,17494.0,0.00717822]
[1673461955936,1.01282247,17495.0,17494.0,0.00517822]
[1673461956213,1.01282247,17495.0,17494.0,0.00917822]
[1673461956214,0.84531247,17495.0,17494.0,0.00917822]
[1673461956479,1.5006,17496.0,17494.0,0.60444053]
[1673461956728,0.033,17495.0,17494.0,0.60844053]
[1673461957493,0.033,17495.0,17494.0,0.60444053]
[1673461957729,2.10758417,17496.0,17494.0,0.60444053]
[1673461957985,2.10758417,17496.0,17494.0,0.60844053]
[1673461957986,0.033,17495.0,17494.0,0.60844053]
[1673461958244,0.23345,17495.0,17494.0,0.60844053]
[1673461958546,0.033,17495.0,17494.0,0.60844053]
[1673461958750,0.033,17495.0,17494.0,0.60444053]
[1673461958751,0.5624644,17495.0,17494.0,0.60444053]
[1673461959001,0.7629144,17495.0,17494.0,0.00917822]
[1673461959256,1.0629144,17495.0,17494.0,0.00517822]
[1673461959511,1.2040144,17495.0,17494.0,0.00917822]
[1673461959828,1.2039544,17495.0,17494.0,0.00917822]
[1673461960788,1.2798544,17495.0,17494.0,0.00517822]
[1673461961042,1.2948544,17495.0,17494.0,0.02417822]
[1673461961314,1.2798544,17495.0,17494.0,0.00517822]
[1673461961549,1.3128544,17495.0,17494.0,0.00917822]
[1673461962850,1.8844454,17495.0,17494.0,0.00917822]
[1673461963113,1.8843854,17495.0,17494.0,0.00917822]
[1673461963369,1.322041,17495.0,17494.0,0.00917822]
[1673461963643,1.893632,17495.0,17494.0,0.00917822]